bitfinex/quotes_SOLUSD_20240727
["timestamp","ask_amount","ask_price","bid_price","bid_amount"]
[1722080327907,5.3871,185.63,185.56,12.59]
[1722080328108,17.9771,185.63,185.56,12.59]
[1722080328830,17.9771,185.63,185.5,23.57955604]
[1722080328831,5.3871,185.63,185.57,12.59]
[1722080331706,17.9767,185.64,185.57,12.59]
[1722080331913,20.0,185.63,185.57,12.59]
[1722080333026,25.3871,185.63,185.57,12.59]
[1722080341942,37.9771,185.63,185.56,12.59]
[1722080342637,12.59,185.6,185.5,22.5018]
[1722080342838,17.978,185.6,185.53,12.59]
[1722080343342,17.978,185.6,185.51,45.0]
[1722080343753,17.978,185.6,185.53,12.59]
[1722080343936,5.388,185.6,185.51,45.0]
[1722080350733,5.3882,185.59,185.53,12.59]
[1722080350953,5.3886,185.58,185.52,12.59]
[1722080351936,20.6894,185.59,185.52,12.59]
[1722080352136,33.2794,185.59,185.52,12.59]
[1722080352350,27.8912,185.59,185.52,12.59]
[1722080352664,15.3012,185.59,185.53,12.59]
[1722080353341,20.6894,185.59,185.53,12.59]
[1722080353542,15.3012,185.59,185.53,12.59]
[1722080353955,15.3012,185.59,185.54,12.59]
[1722080355052,15.3012,185.59,185.51,45.0]
[1722080355543,15.3012,185.59,185.53,12.59]
[1722080355752,20.6894,185.59,185.53,12.59]
[1722080355951,20.6894,185.59,185.52,12.59]
[1722080356153,20.6894,185.59,185.53,45.0]
[1722080356653,20.6894,185.59,185.53,57.59]
[1722080357954,5.3888,185.57,185.46,9.17739361]
[1722080358155,5.3888,185.57,185.51,12.59]
[1722080358359,5.3892,185.56,185.5,12.59]
[1722080358541,17.9792,185.56,185.49,12.59]
[1722080359060,17.9792,185.56,185.48,12.59]
[1722080359061,12.59,185.55,185.48,12.59]
[1722080359835,12.59,185.55,185.49,45.0]
[1722080360768,17.9792,185.56,185.49,57.59]
[1722080366851,5.3895,185.55,185.49,57.59]
[1722080367163,17.9795,185.55,185.47,12.59]
[1722080367476,5.3897,185.54,185.47,12.59]
[1722080368463,17.9797,185.54,185.47,12.59]
[1722080368664,21.7266,185.53,185.41,1.07817584]
[1722080368847,28.9265,185.53,185.46,12.59]
[1722080369352,5.3902,185.52,185.46,12.59]
[1722080370153,34.3164,185.53,185.46,12.59]
[1722080370355,16.3365,185.53,185.48,12.59]
[1722080372950,16.3365,185.53,185.42,1.07831776]
[1722080373252,16.3365,185.53,185.48,12.59]
[1722080376779,16.3365,185.53,185.46,12.59]
[1722080380059,16.3365,185.53,185.47,12.59]
[1722080381584,16.3365,185.53,185.5,12.59]
[1722080382098,16.3365,185.53,185.49,12.59]
[1722080382255,12.59,185.56,185.49,12.59]
[1722080382462,20.0,185.55,185.49,12.59]
[1722080383481,20.0,185.55,185.5,12.59]
[1722080385189,25.3895,185.55,185.5,12.59]
[1722080386481,25.3895,185.55,185.49,12.59]
[1722080386792,5.3899,185.53,185.49,12.59]
[1722080386972,5.3897,185.54,185.48,57.59]
[1722080388377,25.3894,185.55,185.48,57.59]
[1722080388582,5.3898,185.54,185.48,57.59]
[1722080388784,5.3898,185.54,185.48,45.0]
[1722080388966,5.3898,185.54,185.48,57.59]
[1722080393191,5.3898,185.54,185.49,1.07812158]
[1722080393581,5.3898,185.54,185.49,13.66812158]
[1722080394187,5.3898,185.54,185.49,12.59]
[1722080394562,5.3898,185.54,185.48,45.0]
[1722080394775,25.3894,185.55,185.49,12.59]
[1722080395793,5.3897,185.54,185.49,12.59]
[1722080396690,5.3888,185.57,185.52,12.59]
[1722080397286,32.0023969,185.6,185.52,12.59]
[1722080397287,5.3885,185.58,185.52,12.59]
[1722080397668,5.3885,185.58,185.53,12.59]
[1722080397866,21.7244,185.6,185.55,12.59]
[1722080398999,21.7244,185.6,185.56,12.59]
[1722080400271,16.3365,185.6,185.56,12.59]
[1722080401774,21.7244,185.6,185.56,12.59]
[1722080402205,16.3365,185.6,185.56,12.59]
[1722080402380,5.3876,185.61,185.56,12.59]
[1722080404196,5.3874,185.62,185.56,12.59]
[1722080404380,20.0,185.61,185.56,12.59]
[1722080404779,5.3872,185.63,185.56,12.59]
[1722080404994,5.3872,185.63,185.57,12.59]
[1722080405191,20.0,185.62,185.57,12.59]
[1722080405494,25.3873,185.62,185.57,12.59]
[1722080405705,20.0,185.62,185.57,12.59]
[1722080406015,20.0,185.62,185.52,1.07764265]
[1722080406016,0.78872,185.67,185.59,12.59]
[1722080406300,0.78872,185.67,185.62,12.59]
[1722080406478,0.78872,185.67,185.63,45.0]
[1722080406675,0.78872,185.67,185.62,12.59]
[1722080407206,6.17462,185.67,185.61,12.59]
[1722080407497,5.3862,185.66,185.61,12.59]
[1722080407799,5.3862,185.66,185.57,6.4884]
[1722080407800,5.3865,185.65,185.59,12.59]
[1722080408010,5.3865,185.65,185.58,12.59]
[1722080408011,12.59,185.65,185.58,12.59]
[1722080408180,12.59,185.66,185.59,57.59]
[1722080409182,5.3865,185.65,185.59,57.59]
[1722080409390,12.59,185.66,185.59,57.59]
[1722080409696,18.76472,185.67,185.6,12.59]
[1722080410586,0.78872,185.67,185.6,12.59]
[1722080410798,18.76482,185.67,185.6,12.59]
[1722080411383,5.3862,185.66,185.6,12.59]
[1722080412104,13.37872,185.67,185.6,12.59]
[1722080412400,13.37872,185.67,185.61,12.59]
[1722080412606,18.76462,185.67,185.6,12.59]
[1722080413298,18.76462,185.67,185.57,6.4884]
[1722080413299,17.9762,185.66,185.57,6.4884]
[1722080413509,17.9762,185.66,185.59,12.59]
[1722080414376,17.9766,185.65,185.58,57.59]
[1722080414580,17.9766,185.65,185.57,6.4884]
[1722080414581,17.9767,185.64,185.57,19.0784]
[1722080414904,12.59,185.64,185.57,19.0784]
[1722080415404,17.9768,185.64,185.57,12.59]
[1722080416003,16.04312,185.67,185.59,12.59]
[1722080416307,32.59,185.66,185.59,12.59]
[1722080416605,37.9762,185.66,185.58,12.59]
[1722080416984,17.9764,185.65,185.58,12.59]
[1722080417192,5.3864,185.65,185.58,12.59]
[1722080417592,17.9764,185.65,185.58,12.59]
[1722080417791,17.9764,185.65,185.57,12.59]
[1722080417996,12.59,185.64,185.57,12.59]
[1722080418602,17.9764,185.65,185.57,12.59]
[1722080419505,5.3868,185.64,185.57,12.59]
[1722080420986,17.9765,185.65,185.57,12.59]
[1722080422407,5.3868,185.64,185.57,12.59]
[1722080422614,12.59,185.62,185.53,22.4809]
[1722080422814,17.9774,185.62,185.55,12.59]
[1722080423388,17.9774,185.62,185.54,45.0]
[1722080423389,17.9774,185.62,185.54,57.59]
[1722080423592,12.59,185.59,185.52,12.59]
[1722080424514,12.59,185.58,185.51,12.59]
[1722080425396,12.59,185.57,185.5,12.59]
[1722080425594,17.9788,185.57,185.5,12.59]
[1722080425792,12.59,185.56,185.49,12.59]
[1722080426100,12.59,185.55,185.48,12.59]
[1722080427819,12.59,185.55,185.43,15.0264]
[1722080427820,27.6397,185.53,185.43,15.0264]
[1722080427987,27.6397,185.53,185.4,6.6254]
[1722080427988,12.59,185.51,185.4,6.6254]
[1722080428187,12.59,185.51,185.44,12.59]
[1722080428396,20.4398,185.53,185.4,6.6254]
[1722080428397,15.0497,185.53,185.47,12.59]
[1722080428615,20.0,185.52,185.47,12.59]
[1722080433121,20.4397,185.53,185.47,12.59]
[1722080433301,20.0,185.52,185.47,12.59]
[1722080434907,20.0,185.52,185.49,12.59]
[1722080435522,15.0497,185.53,185.49,12.59]
[1722080435905,15.0497,185.53,185.48,12.59]
[1722080437615,15.0497,185.53,185.47,12.59]
[1722080439237,5.3903,185.52,185.47,12.59]
[1722080443921,20.4397,185.53,185.47,12.59]
[1722080452732,15.0497,185.53,185.47,12.59]
[1722080453359,15.0497,185.53,185.48,12.59]
[1722080457941,15.0497,185.53,185.47,12.59]
[1722080458347,20.4397,185.53,185.47,12.59]
[1722080458529,15.0497,185.53,185.46,12.59]
[1722080459649,15.0497,185.53,185.47,12.59]
[1722080460243,5.3903,185.52,185.47,12.59]
[1722080460951,20.4397,185.53,185.47,12.59]
[1722080461134,15.0497,185.53,185.48,12.59]
[1722080462223,20.4396,185.53,185.48,12.59]
[1722080462430,5.3902,185.52,185.48,12.59]
[1722080462633,5.3902,185.52,185.46,12.59]
[1722080470363,20.4397,185.53,185.46,12.59]
[1722080470528,20.0,185.52,185.47,12.59]
[1722080470928,20.0,185.52,185.48,12.59]
[1722080472029,20.0,185.52,185.42,8.10299745]
[1722080472030,20.0,185.52,185.47,12.59]
[1722080473258,25.3902,185.52,185.47,12.59]
[1722080473636,20.0,185.52,185.47,12.59]
[1722080476948,25.3902,185.52,185.47,12.59]
[1722080478482,20.4397,185.53,185.47,12.59]
[1722080479276,5.3903,185.52,185.47,12.59]
[1722080480476,5.3903,185.52,185.41,8.10304002]
[1722080480781,5.3903,185.52,185.46,12.59]
[1722080481367,15.0497,185.53,185.46,12.59]
[1722080482265,12.59,185.56,185.42,65.0]
[1722080482266,5.3893,185.56,185.48,12.59]
[1722080482581,25.3894,185.55,185.42,65.0]
[1722080482782,25.3894,185.55,185.49,12.59]
[1722080484191,20.0,185.55,185.49,12.59]
[1722080485767,25.3894,185.55,185.49,12.59]
[1722080486783,25.3894,185.55,185.48,12.59]
[1722080487278,5.3896,185.54,185.48,12.59]
[1722080487481,5.3896,185.54,185.47,12.59]
[1722080487665,5.3899,185.53,185.47,12.59]
[1722080490160,5.3899,185.53,185.43,1.07823108]
[1722080490369,5.3904,185.52,185.45,12.59]
[1722080492889,17.981,185.5,185.41,8.10299373]
[1722080493068,17.9811,185.49,185.42,12.59]
[1722080493270,17.9811,185.49,185.41,12.59]
[1722080493473,17.9814,185.48,185.41,12.59]
[1722080493673,15.1306,185.47,185.4,20.69299373]
[1722080493896,27.7206,185.47,185.4,8.10299373]
[1722080494186,12.59,185.46,185.39,20.69325762]
[1722080494389,15.1306,185.5,185.43,12.59]
[1722080494564,15.1306,185.5,185.39,8.10325762]
[1722080494565,20.0,185.49,185.44,12.59]
[1722080499364,20.0,185.49,185.39,8.10321825]
[1722080499577,20.0,185.49,185.43,12.59]
[1722080503196,25.3911,185.49,185.43,12.59]
[1722080504169,20.0,185.49,185.43,12.59]
[1722080504595,20.0,185.49,185.4,1.07847838]
[1722080504797,32.59,185.49,185.42,12.59]
[1722080505097,37.9811,185.49,185.42,12.59]
[1722080505283,32.59,185.49,185.42,12.59]
[1722080505597,12.59,185.49,185.42,12.59]
[1722080506788,20.5214,185.5,185.42,12.59]
[1722080506997,12.59,185.49,185.42,12.59]
[1722080509597,12.59,185.49,185.41,12.59]
[1722080510002,12.59,185.48,185.41,12.59]
[1722080510811,12.59,185.48,185.4,12.59]
[1722080511007,12.59,185.47,185.39,12.59]
[1722080516220,12.59,185.46,185.34,6.16]
[1722080516401,12.59,185.45,185.38,12.59]
[1722080516717,12.59,185.45,185.35,45.34]
[1722080517012,12.59,185.46,185.38,12.59]
[1722080518002,12.59,185.46,185.39,12.59]
[1722080519600,12.59,185.46,185.38,12.59]
[1722080520012,12.59,185.45,185.38,12.59]
[1722080520530,12.59,185.44,185.35,45.34]
[1722080520701,12.59,185.44,185.36,32.59]
[1722080521018,12.59,185.44,185.37,57.59]
[1722080522223,12.59,185.44,185.38,12.59]
[1722080522396,12.59,185.45,185.38,12.59]
[1722080523015,12.59,185.45,185.37,45.0]
[1722080523016,12.59,185.44,185.37,57.59]
[1722080524916,12.59,185.43,185.37,45.0]
[1722080525231,12.59,185.44,185.37,45.0]
[1722080529911,12.59,185.44,185.36,12.59]
[1722080530118,12.59,185.43,185.36,12.59]
[1722080530315,18.21864122,185.49,185.34,6.16]
[1722080530316,12.59,185.42,185.34,6.16]
[1722080530628,12.59,185.42,185.35,12.59]
[1722080531335,12.59,185.41,185.34,6.16]
[1722080531634,12.59,185.4,185.34,6.16]
[1722080532319,12.59,185.38,185.29,6.1596]
[1722080532707,12.59,185.38,185.31,12.59]
[1722080533529,12.59,185.38,185.29,6.1596]
[1722080533530,12.59,185.37,185.3,12.59]
[1722080534046,12.59,185.37,185.31,45.0]
[1722080534415,12.59,185.37,185.3,57.59]
[1722080535429,12.59,185.38,185.31,12.59]
[1722080535635,5.3938,185.4,185.3,58.66903772]
[1722080535812,12.59,185.38,185.3,58.66903772]
[1722080536011,12.59,185.38,185.31,12.59]
[1722080537006,12.59,185.38,185.3,57.59]
[1722080537208,12.59,185.37,185.3,57.59]
[1722080540423,12.59,185.37,185.3,45.0]
[1722080540733,12.59,185.36,185.3,45.0]
[1722080541750,17.9843,185.38,185.31,12.59]
[1722080541950,12.59,185.38,185.31,12.59]
[1722080542949,17.9843,185.38,185.31,12.59]
[1722080543846,12.59,185.37,185.3,57.59]
[1722080548855,17.9847,185.37,185.3,57.59]
[1722080549529,12.59,185.37,185.3,57.59]
[1722080554360,5.3943,185.38,185.3,57.59]
[1722080554559,12.59,185.37,185.3,57.59]
[1722080555666,17.9843,185.38,185.3,57.59]
[1722080559848,17.9846,185.37,185.3,57.59]
[1722080560561,12.59,185.36,185.29,6.1596]
[1722080560767,12.59,185.34,185.29,6.1596]
[1722080563864,17.9855,185.34,185.29,6.1596]
[1722080564102,12.59,185.33,185.29,6.1596]
[1722080564449,12.59,185.33,185.28,15.4343]
[1722080567273,12.59,185.3,185.21,8.10913412]
[1722080567573,15.6829,185.32,185.19,12.59]
[1722080567574,12.59,185.26,185.19,12.59]
[1722080567750,12.59,185.31,185.2,12.59]
[1722080567751,12.59,185.27,185.2,12.59]
[1722080567976,12.59,185.3,185.23,12.59]
[1722080568194,5.3954,185.34,185.24,7.11651551]
[1722080568394,5.3954,185.34,185.26,12.59]
[1722080568395,32.59,185.33,185.26,12.59]
[1722080568698,17.9852,185.35,185.28,12.59]
[1722080568892,17.9849,185.36,185.29,12.59]
[1722080569274,20.0,185.35,185.29,12.59]
[1722080570291,25.3952,185.35,185.29,12.59]
[1722080571184,20.0,185.35,185.29,12.59]
[1722080572672,5.3949,185.36,185.29,12.59]
[1722080572888,35.44,185.43,185.33,12.59]
[1722080573081,17.9837,185.4,185.33,12.59]
[1722080573269,12.59,185.4,185.33,12.59]
[1722080573470,34.9168499,185.43,185.36,12.59]
[1722080573674,5.3932,185.42,185.36,12.59]
[1722080574271,19.2337499,185.43,185.36,12.59]
[1722080574999,1.2508499,185.43,185.38,12.59]
[1722080575199,12.59,185.47,185.41,12.59]
[1722080575495,5.391,185.5,185.43,12.59]
[1722080575691,5.391,185.5,185.44,12.59]
[1722080576397,5.3911,185.49,185.43,12.59]
[1722080576608,15.6829,185.52,185.41,12.59]
[1722080576609,17.9814,185.48,185.41,12.59]
[1722080576907,5.3918,185.47,185.41,12.59]
[1722080577282,17.9814,185.48,185.41,12.59]
[1722080577979,5.3911,185.49,185.43,12.59]
[1722080578197,20.0,185.48,185.43,12.59]
[1722080579093,5.3911,185.49,185.43,12.59]
[1722080579878,5.3914,185.48,185.43,12.59]
[1722080580078,5.3914,185.48,185.42,57.59]
[1722080582077,12.59,185.49,185.42,12.59]
[1722080582275,12.59,185.48,185.41,12.59]
[1722080582583,12.59,185.45,185.38,16.4323]
[1722080582790,5.3929,185.43,185.38,29.0223]
[1722080582996,5.3929,185.43,185.38,16.4323]
[1722080583318,5.3929,185.43,185.37,6.037]
[1722080583319,5.3938,185.4,185.37,6.037]
[1722080583812,76.6343,185.49,185.33,22.4693]
[1722080583813,12.59,185.39,185.33,22.4693]
[1722080584010,12.59,185.38,185.33,6.037]
[1722080584411,17.9843,185.38,185.33,6.037]
[1722080584607,17.9843,185.38,185.31,12.59]
[1722080585502,5.3946,185.37,185.31,12.59]
[1722080585803,17.9843,185.38,185.31,12.59]
[1722080589118,12.59,185.37,185.3,12.59]
[1722080590717,12.59,185.37,185.21,2.1565614]
[1722080590718,15.1492,185.3,185.13,6.518]
[1722080590936,17.9887,185.23,185.13,6.518]
[1722080591222,32.59,185.22,185.14,12.59]
[1722080591594,5.3997,185.2,185.13,6.518]
[1722080591801,5.3997,185.2,185.13,19.108]
[1722080592006,17.9897,185.2,185.13,19.108]
[1722080592200,20.0,185.22,185.14,12.59]
[1722080592504,12.59,185.24,185.16,12.59]
[1722080592704,20.0,185.23,185.17,12.59]
[1722080593117,20.0,185.23,185.13,6.518]
[1722080593325,5.3989,185.23,185.13,6.518]
[1722080593504,5.3989,185.23,185.14,45.0]
[1722080593826,20.0,185.22,185.14,45.0]
[1722080594499,20.0,185.22,185.15,1.08000937]
[1722080594703,5.3981,185.25,185.15,1.08000937]
[1722080594901,39.9837499,185.29,185.14,45.0]
[1722080594902,20.0,185.23,185.14,45.0]
[1722080595424,25.3981,185.25,185.14,45.0]
[1722080596206,25.3981,185.25,185.15,1.07991763]
[1722080596421,25.3981,185.25,185.14,45.0]
[1722080597804,20.0,185.25,185.14,45.0]
[1722080598104,5.3989,185.23,185.14,45.0]
[1722080599113,5.3989,185.22,185.14,45.0]
[1722080601027,5.3987,185.23,185.14,45.0]
[1722080603926,5.3984,185.24,185.14,45.0]
[1722080604226,20.0,185.23,185.14,45.0]
[1722080606429,25.3987,185.23,185.14,45.0]
[1722080610219,5.3984,185.24,185.14,45.0]
[1722080614036,5.3981,185.25,185.14,45.0]
[1722080614218,20.0,185.24,185.14,45.0]
[1722080614539,25.3985,185.24,185.14,45.0]
[1722080615030,38.0185,185.24,185.16,12.62]
[1722080615416,38.0185,185.24,185.14,45.0]
[1722080615417,18.019,185.22,185.14,57.62]
[1722080615835,18.0187,185.23,185.16,12.62]
[1722080616035,18.0184,185.24,185.17,12.62]
[1722080616337,21.2508499,185.29,185.17,12.62]
[1722080616338,5.3981,185.25,185.17,12.62]
[1722080616512,12.62,185.24,185.17,12.62]
[1722080617320,18.0184,185.24,185.17,12.62]
[1722080617725,5.3987,185.23,185.17,12.62]
[1722080617927,5.3987,185.23,185.15,12.62]
[1722080618128,5.399,185.22,185.16,45.0]
[1722080618436,5.399,185.22,185.15,12.62]
[1722080618935,18.0186,185.24,185.15,12.62]
[1722080619319,12.62,185.24,185.16,45.0]
[1722080619525,13.4936,185.28,185.15,12.62]
[1722080619526,12.62,185.22,185.15,12.62]
[1722080620128,18.019,185.22,185.15,12.62]
[1722080620330,12.62,185.22,185.15,12.62]
[1722080620534,13.4936,185.28,185.16,57.62]
[1722080620535,12.62,185.24,185.16,57.62]
[1722080620740,12.62,185.24,185.16,12.62]
[1722080621140,5.3987,185.23,185.16,12.62]
[1722080621346,18.0184,185.24,185.16,12.62]
[1722080621734,5.3987,185.23,185.16,12.62]
[1722080622652,18.0187,185.23,185.15,12.62]
[1722080622838,5.399,185.22,185.15,12.62]
[1722080623043,18.0187,185.23,185.15,12.62]
[1722080623439,17.3132499,185.22,185.11,6.1226]
[1722080623755,17.3132499,185.22,185.14,12.62]
[1722080623756,5.3996,185.2,185.14,12.62]
[1722080623947,1.2508499,185.22,185.16,12.62]
[1722080624159,6.6497499,185.22,185.16,12.62]
[1722080624545,5.3989,185.22,185.16,12.62]
[1722080625058,20.0,185.21,185.16,12.62]
[1722080625938,20.0,185.21,185.17,12.62]
[1722080627449,16.0624,185.27,185.18,12.62]
[1722080627651,16.0624,185.27,185.2,12.62]
[1722080627652,28.6824,185.27,185.2,12.62]
[1722080628161,5.3983,185.25,185.2,12.62]
[1722080628365,12.62,185.26,185.19,12.62]
[1722080628547,16.0624,185.27,185.18,12.62]
[1722080628548,5.3984,185.24,185.18,12.62]
[1722080628736,5.3984,185.24,185.19,12.62]
[1722080629053,12.62,185.25,185.19,12.62]
[1722080629054,5.3981,185.25,185.19,12.62]
[1722080629253,5.3981,185.25,185.2,12.62]
[1722080630035,5.3984,185.24,185.2,12.62]
[1722080630734,13.4923,185.3,185.2,12.62]
[1722080630943,32.62,185.29,185.22,12.62]
[1722080631233,15.8616,185.32,185.23,12.62]
[1722080631553,5.3969,185.29,185.24,12.62]
[1722080633135,5.3973,185.28,185.24,12.62]
[1722080634836,5.3973,185.28,185.23,12.62]
[1722080635036,5.3973,185.28,185.22,12.62]
[1722080636050,5.3975,185.27,185.22,12.62]
[1722080636848,5.3975,185.27,185.21,57.62]
[1722080637540,5.3978,185.26,185.21,12.62]
[1722080637943,5.3982,185.25,185.18,19.1721]
[1722080638262,5.3987,185.23,185.18,19.1721]
[1722080638453,5.3984,185.24,185.18,19.1721]
[1722080638653,5.3984,185.24,185.19,12.62]
[1722080639941,5.3984,185.24,185.18,19.1721]
[1722080640348,18.0184,185.24,185.18,6.5521]
[1722080641539,5.3988,185.23,185.13,6.5521]
[1722080641745,18.0184,185.24,185.17,12.62]
[1722080642772,12.62,185.24,185.17,12.62]
[1722080642975,63.9709,185.31,185.2,12.62]
[1722080643184,5.3975,185.27,185.21,12.62]
[1722080643554,20.0,185.26,185.21,12.62]
[1722080644460,18.017,185.29,185.22,12.62]
[1722080644861,5.397,185.29,185.23,12.62]
[1722080645879,38.0172,185.28,185.21,12.62]
[1722080648888,25.3972,185.28,185.22,12.62]
[1722080652574,25.3972,185.28,185.21,12.62]
[1722080653992,25.3972,185.28,185.22,12.62]
[1722080655973,6.6477499,185.3,185.23,12.62]
[1722080656196,15.8616,185.32,185.27,12.62]
[1722080657067,15.8616,185.32,185.28,12.62]
[1722080657271,21.2577,185.32,185.27,12.62]
[1722080658299,15.8616,185.32,185.27,12.62]
[1722080658704,5.3958,185.33,185.28,12.62]
[1722080658903,5.3958,185.33,185.29,12.62]
[1722080659609,5.3958,185.33,185.28,12.62]
[1722080662115,18.6594,185.35,185.25,12.62]
[1722080662116,5.3963,185.31,185.25,12.62]
[1722080662318,5.3963,185.31,185.21,6.0916]
[1722080662490,5.3966,185.3,185.25,12.62]
[1722080662890,18.0169,185.29,185.21,6.0916]
[1722080663116,18.0167,185.3,185.23,12.62]
[1722080663702,12.62,185.3,185.23,12.62]
[1722080664016,12.62,185.3,185.24,13.69966004]
[1722080664224,12.62,185.3,185.24,12.62]
[1722080664596,18.0169,185.3,185.24,12.62]
[1722080665010,12.62,185.3,185.24,12.62]
[1722080665211,12.62,185.3,185.22,12.62]
[1722080665511,12.62,185.3,185.23,12.62]
[1722080666219,5.3971,185.29,185.23,12.62]
[1722080666512,5.3973,185.28,185.22,12.62]
[1722080667507,18.0173,185.28,185.19,16.5067]
[1722080667703,38.0177,185.27,185.2,12.62]
[1722080668915,5.3978,185.26,185.2,12.62]
[1722080669499,38.0175,185.27,185.2,12.62]
[1722080669999,20.0,185.27,185.21,12.62]
[1722080670293,20.0,185.27,185.22,12.62]
[1722080670917,25.3975,185.27,185.21,12.62]
[1722080673017,25.3975,185.27,185.22,12.62]
[1722080673219,20.0,185.27,185.22,12.62]
[1722080673521,25.3972,185.28,185.22,12.62]
[1722080675115,16.3343,185.29,185.24,12.62]
[1722080676016,21.7313,185.29,185.24,12.62]
[1722080678125,21.7313,185.29,185.23,12.62]
[1722080680734,5.3973,185.28,185.23,12.62]
[1722080685434,5.3975,185.27,185.23,12.62]
[1722080685634,5.3975,185.27,185.22,12.62]
[1722080685948,5.3973,185.28,185.22,12.62]
[1722080686522,5.3973,185.28,185.23,12.62]
[1722080695651,5.3973,185.28,185.16,6.4893]
[1722080695652,5.3973,185.28,185.22,12.62]
[1722080696448,16.449,185.34,185.24,12.62]
[1722080696753,16.449,185.34,185.29,12.62]
[1722080696956,5.3948,185.37,185.31,12.62]
[1722080697162,5.3948,185.37,185.32,12.62]
[1722080697757,11.66564498,185.36,185.31,12.62]
[1722080697960,5.3949,185.36,185.31,12.62]
[1722080698124,5.3952,185.35,185.31,12.62]
[1722080698949,5.3952,185.35,185.3,12.62]
[1722080701242,5.3955,185.34,185.3,12.62]
[1722080701751,5.3955,185.34,185.29,12.62]
[1722080701951,12.62,185.34,185.25,45.0]
[1722080702155,13.4866,185.37,185.23,6.1432]
[1722080702156,32.62,185.33,185.26,12.62]
[1722080703063,32.62,185.33,185.25,12.62]
[1722080703064,5.3964,185.31,185.25,12.62]
[1722080703358,12.62,185.32,185.23,6.1432]
[1722080703560,5.3969,185.3,185.24,12.62]
[1722080704063,18.0163,185.31,185.24,12.62]
[1722080704664,5.3963,185.31,185.25,12.62]
[1722080707458,18.0161,185.32,185.25,12.62]
[1722080707639,26.6466499,185.33,185.26,12.62]
[1722080707959,20.0,185.32,185.26,12.62]
[1722080708162,25.3961,185.32,185.26,12.62]
[1722080708857,25.3961,185.32,185.25,12.62]
[1722080708858,5.3964,185.31,185.25,12.62]
[1722080709960,5.397,185.29,185.23,12.62]
[1722080711867,5.397,185.29,185.24,12.62]
[1722080714964,27.6303,185.31,185.24,12.62]
[1722080714965,5.3973,185.28,185.24,12.62]
[1722080715848,5.3973,185.28,185.23,12.62]
[1722080717040,5.3969,185.29,185.23,12.62]
[1722080718672,5.3969,185.29,185.24,12.62]
[1722080718976,5.3969,185.29,185.25,12.62]